[Event "15th Tashkent Open Agzamov 2022"]
[Site "Tashkent"]
[Date "2022.05.05"]
[Round "2.6"]
[White "Van Foreest, Lucas"]
[Black "Saydaliev, Saidakbar"]
[Result "1-0"]
[ECO "E04"]
[WhiteElo "2572"]
[BlackElo "2343"]
[Annotator "TA"]
[PlyCount "77"]
[EventDate "2022.05.05"]
[EventType "swiss"]
[EventCountry "UZB"]
[SourceTitle "playchess.com"]
[Source "ChessBase"]
[SourceQuality "1"]
[TimeControl "5400+30"]

{[%evp 11,77,10,41,0,73,83,83,66,80,93,85,86,85,82,88,76,76,83,152,137,158,164,353,230,243,162,167,118,129,40,266,129,354,295,587,572,497,436,436,428,435,435,428,427,724,720,711,687,678,638,849,716,979,943,1253,1245,1219,1213,1123,0,579,0,1046,388,388,381,700,687]} 1. d4 {[%emt 0:02:00]} Nf6 {[%emt 0:02:57]} 2. c4 {[%emt 0:00:03]} e6 {[%emt 0:00:19]} 3. Nf3 {[%emt 0:00:06]} d5 {[%emt 0:00:15]} 4. g3 {[%emt 0:00:05]} dxc4 {[%emt 0:01:53]} 5. Bg2 {[%emt 0:00:06]} a6 {[%emt 0:00:49]} 6. O-O {[%emt 0:00:07]} Nc6 {[%emt 0:00:07]} 7. Qc2 {[%emt 0:00:05] E04: Open Catalan: 5 Nf3.} (7. e3 $5 {[%cal Rb1d2]}) 7... Nb4 {[%emt 0:12:43]} (7... Nxd4 $11 8. Nxd4 Qxd4) 8. Qxc4 $16 {[%emt 0:01:45]} b5 {[%emt 0:00:51]} 9. Qb3 {[%emt 0:00:24] White is better.} Bb7 {[%emt 0:00:23]} 10. a3 {[%emt 0:07:35]} Nbd5 {[%emt 0:01:23] [#]} 11. Qc2 $146 {[%emt 0:11:24] Inhibits c5.} ({Predecessor:} 11. a4 b4 12. Nbd2 c5 13. e4 Nb6 14. a5 Nbd7 15. e5 Nd5 16. Nc4 cxd4 17. Nxd4 Bc5 18. Rd1 O-O 19. Nf5 {½-½ (19) Wells,J (2004)-Sedykh,M (2143) Torquay 2019}) 11... Qc8 {[%emt 0:07:04]} 12. e4 {[%emt 0:04:47]} Nb6 {[%emt 0:00:30]} 13. Re1 {[%emt 0:00:11] Strongly threatening d5.} Be7 {[%emt 0:04:17]} 14. Bg5 {[%emt 0:01:12][%cal Od4d5]} Nbd7 {[%emt 0:19:52]} (14... h6 $142 15. Bxf6 Bxf6) 15. Nbd2 {[%emt 0:01:56][%cal Od4d5]} c5 {[%emt 0:02:50]} 16. d5 {[%emt 0:00:01]} exd5 {[%emt 0:06:37]} (16... e5 {was worth a try.} 17. Bxf6 Bxf6) 17. exd5 {[%emt 0:16:24]} Bxd5 {[%emt 0:00:09]} 18. Nh4 {[%emt 0:00:07]} Bxg2 {[%emt 0:12:09]} 19. Nf5 {[%emt 0:00:58]} (19. Kxg2 $6 Kf8 $14) (19. Nxg2 $6 Qd8 $11) ({White should play} 19. Bxf6 $18 gxf6 20. Nf5) 19... Kf8 {[%emt 0:00:12][%cal Og2h3]} 20. Kxg2 {[%emt 0:20:33] White is more active.} ({Reject} 20. Rxe7 $6 Qc6 21. f3 (21. Qb3 Bd5 $15) 21... Bh3 $14) (20. Nxe7 $16 Qb7 21. Qf5 (21. Bxf6 gxf6 22. Nf5 Bh3 $14)) 20... Qc6+ {[%emt 0:03:09] [#]} (20... h6 $14) 21. Kg1 {[%emt 0:00:02]} (21. Nf3 $1 $18 {is the precise move to win.} Re8 22. Rad1 (22. Rxe7 Rxe7 23. Nxe7 Kxe7 $11)) 21... Bd6 {[%emt 0:06:09]} (21... Re8 $16) 22. Rad1 {[%emt 0:01:00]} Bc7 $2 {[%emt 0:03:42]} (22... Kg8 {was necessary.} 23. Nxd6 Qxd6) 23. Ne7 $18 {[%emt 0:03:09]} Qb7 {[%emt 0:01:05]} 24. Bxf6 {[%emt 0:07:21]} Nxf6 {[%emt 0:00:54] [#]} 25. Ne4 $1 {[%emt 0:01:41] Pair of Knights!} Be5 {[%emt 0:01:45]} (25... Nxe4 26. Rxe4) 26. Nf5 {[%emt 0:04:25]} Nxe4 {[%emt 0:08:37]} 27. Rxe4 {[%emt 0:00:05][%cal Be1e4,Be4d4,Bd4d7][%mdl 32]} Qc7 {[%emt 0:00:08]} (27... Bf6 $142 28. Qxc5+ Kg8) 28. Rd5 $1 {[%emt 0:01:58][%csl LRc5,LRe5][%cal Bd1d5,Bd5c5,Bc5c7][%mdl 32]} Bf6 {[%emt 0:00:01]} 29. Rxc5 {[%emt 0:00:39]} Qd8 {[%emt 0:00:26]} 30. Rc7 {[%emt 0:00:58] aiming for Qc6.} Qd5 {[%emt 0:03:01] [#]} 31. Rd4 $3 {[%emt 0:02:05][%mdl 512]} Qe6 {[%emt 0:00:38] Against Rc8+} (31... Bxd4 32. Rc8+) 32. Rdd7 {[%emt 0:00:24]} Re8 {[%emt 0:00:41]} 33. Qc5+ {[%emt 0:04:03]} Kg8 {[%emt 0:00:11]} 34. Ne7+ {[%emt 0:00:43]} Kf8 {[%emt 0:00:44]} 35. Nf5+ {[%emt 0:01:38]} Kg8 {[%emt 0:00:05]} 36. Ne7+ {[%emt 0:02:51]} (36. Nd6 $142 Rd8 37. Rxd8+ Bxd8 38. Rc8) 36... Kf8 $1 {[%emt 0:00:08] [#]} 37. Ng6+ $2 {[%emt 0:01:30]} (37. Rc8 $1 {[%mdl 512] Threatening mate with Rxe8+.} Qe1+ (37... g6 38. Nf5+) 38. Kg2 Qe4+ 39. Kh3 Qxe7 40. Rdd8) 37... Kg8 {[%emt 0:00:04]} 38. Nxh8 {[%emt 0:00:15]} Qh3 $2 {[%emt 0:01:44] [#]} (38... Qe1+ 39. Kg2 Qe4+ 40. f3 Qe2+ 41. Qf2 Kxh8 42. Qxe2 Rxe2+ 43. Kf1 Re8) 39. Qe3 $3 {[%emt 0:01:18] Weighted Error Value: White=0.82/Black=0.69} 1-0

[Event "15th Tashkent Open Agzamov 2022"]
[Site "Tashkent"]
[Date "2022.05.05"]
[Round "2.8"]
[White "Muradli, Mahammad"]
[Black "Abdurakhmonov, Mukhammadali"]
[Result "0-1"]
[ECO "E01"]
[WhiteElo "2539"]
[BlackElo "2308"]
[Annotator "TA"]
[PlyCount "94"]
[EventDate "2022.05.05"]
[EventType "swiss"]
[EventCountry "UZB"]
[SourceTitle "playchess.com"]
[Source "ChessBase"]
[SourceQuality "1"]
[TimeControl "5400+30"]

{[%evp 9,94,15,53,41,67,66,83,74,89,84,86,97,100,83,94,83,89,80,98,69,93,88,91,93,87,83,85,81,98,54,66,58,50,51,45,30,54,12,9,0,0,-53,-8,0,-8,-10,0,-8,-23,-29,-44,-93,-98,-154,-150,-142,-116,-188,-183,-167,-165,-245,-243,-177,-173,-321,-273,-511,-517,-491,-472,-754,-710,-871,-852,-809,-810,-684,-339,-336,-323,-2954,-2664,-5426,-5417,-29998,-29999]} 1. c4 {[%emt 0:01:39]} e6 {[%emt 0:03:40]} 2. Nf3 {[%emt 0:00:16]} Nf6 {[%emt 0:01:40]} 3. g3 {[%emt 0:00:08]} d5 {[%emt 0:01:13]} 4. d4 {[%emt 0:00:29]} a6 {[%emt 0:04:43]} 5. Nbd2 {[%emt 0:02:37]} dxc4 {[%emt 0:17:11]} 6. Nxc4 {[%emt 0:01:22] [#] E01: Catalan: Early deviations.} Bb4+ $146 {[%emt 0:02:58]} ({Predecessor:} 6... c5 7. Bg2 Nc6 8. O-O cxd4 9. b3 Bc5 10. Bb2 O-O 11. Rc1 Re8 12. Nce5 Nxe5 13. Nxe5 Qd6 14. Nc4 Qd8 15. Ne5 Qd6 16. Nc4 Qd8 {½-½ (16) Svane,R (2615)-Bernadskiy,V (2594) Riga 2019}) 7. Bd2 {[%emt 0:02:29][%cal Bc1d2,Bd2e1,Be1a5,Ba5b4,Bb4c3][%mdl 32]} Be7 {[%emt 0:00:06]} 8. Bg2 {[%emt 0:01:40] White is better.} Nc6 {[%emt 0:00:41]} 9. e3 {[%emt 0:01:30]} O-O {[%emt 0:01:25]} 10. O-O {[%emt 0:00:31]} Ne4 {[%emt 0:07:53]} 11. Be1 {[%emt 0:03:41]} Nd6 {[%emt 0:01:40]} 12. Nce5 {[%emt 0:03:32]} Nxe5 {[%emt 0:00:06]} 13. Nxe5 {[%emt 0:00:07]} Bd7 {[%emt 0:00:04]} 14. Ba5 {[%emt 0:02:06]} Rc8 {[%emt 0:05:26]} 15. Rc1 {[%emt 0:03:05]} Bb5 {[%emt 0:00:37]} 16. Re1 {[%emt 0:00:41]} b6 {[%emt 0:00:07]} 17. Bb4 {[%emt 0:01:35]} c5 {[%emt 0:04:30]} 18. dxc5 {[%emt 0:04:54]} Nf5 {[%emt 0:00:20]} 19. Qb3 {[%emt 0:05:53] [#] And now cxb6 would win.} bxc5 {[%emt 0:02:16]} 20. Bc3 {[%emt 0:00:49]} c4 {[%emt 0:01:03]} 21. Qc2 {[%emt 0:00:30]} Qe8 {[%emt 0:01:19]} 22. e4 {[%emt 0:03:54]} Nd6 {[%emt 0:00:42][%cal Bf5d6,Bd6b7,Bb7c5,Bc5a4,Ba4c3][%mdl 32]} 23. Qe2 {[%emt 0:05:29]} Nb7 {[%emt 0:07:32]} 24. Ng4 {[%emt 0:08:08] Threatens to win with e5.} Nc5 {[%emt 0:02:26]} 25. Rcd1 {[%emt 0:04:59]} (25. e5 $11) 25... Na4 {[%emt 0:04:56]} 26. e5 {[%emt 0:00:56][%cal Og4f6] Strongly threatening Nf6+!} Nxc3 {[%emt 0:00:12]} 27. bxc3 {[%emt 0:00:01]} h5 {[%emt 0:04:44]} 28. Ne3 {[%emt 0:02:02]} g6 {[%emt 0:00:10]} 29. g4 {[%emt 0:03:22]} h4 {[%emt 0:01:12]} 30. Rd4 {[%emt 0:12:01]} (30. h3 $15 {is superior.}) 30... Bc5 $17 {[%emt 0:01:13]} 31. Rf4 {[%emt 0:00:40]} (31. Rdd1 $142) 31... Qe7 {[%emt 0:00:06]} 32. Rf6 {[%emt 0:02:40] [#]} Qc7 $1 {[%emt 0:05:10]} 33. Nc2 {[%emt 0:00:13]} (33. Nd1 $17) 33... Rfd8 {[%emt 0:01:11][%cal Bf8d8,Bd8d3,Bd3c3,Bc3c2,Bc2g2,Bg2f2][%mdl 32]} 34. Qe4 {[%emt 0:04:19]} Bc6 {[%emt 0:04:22]} 35. Qf4 {[%emt 0:02:56]} (35. Qxc6 {keeps fighting.} Qxc6 36. Bxc6 Rxc6 37. Kg2) 35... Bxg2 $19 {[%emt 0:00:34]} 36. Kxg2 {[%emt 0:00:01]} Rd3 {[%emt 0:02:03]} 37. Ne3 {[%emt 0:02:54]} (37. Qxc4 $142 Qc6+ 38. Qe4) 37... Rxc3 {[%emt 0:03:17]} 38. Qg5 $2 {[%emt 0:07:09]} (38. Qe4 {might work better.}) 38... Qb7+ {[%emt 0:02:03]} 39. Kh3 {[%emt 0:00:13]} Kg7 {[%emt 0:02:51] aiming for ...Rd3.} ({Not} 39... Be7 $2 40. Kxh4 Rd3 41. Rc1 $19) 40. Kxh4 {[%emt 0:01:54]} (40. Qf4 $142 Kg8 41. g5) 40... Bxe3 {[%emt 0:00:33]} 41. fxe3 {[%emt 0:00:38]} Rc2 {[%emt 0:00:49][%csl LRa2,LRh2] ( -> ...Rh8+)} 42. Qf4 {[%emt 0:02:21]} Rh8+ {[%emt 0:06:26]} 43. Kg5 Qe7 {[%emt 0:00:00]} (43... Rg2 $142 {[%csl Gg6][%cal Rh8h5]} 44. Rxg6+ fxg6 45. Qf6+ Kg8 46. Qxg6+ Qg7 47. Qxg7+ Kxg7) 44. h4 {[%emt 0:02:06]} Rg2 {[%emt 0:00:00][%csl Gg6][%cal Rh8h5] Dancing on a razor blade.} ({Stronger than} 44... Rxa2 45. Rg1 $17) 45. Qe4 $2 {[%emt 0:01:16]} (45. Qf3 Qc7 46. Kf4) 45... Rf2 $1 {[%emt 0:00:00][%cal Rf2f6]} 46. Qd4 {[%emt 0:00:55]} Rd8 {[%emt 0:00:00]} 47. Qa1 {[%emt 0:00:26]} Rd5 {[%emt 0:00:00] Weighted Error Value: White=0.78/Black=0.13 (very precise)} 0-1

[Event "15th Tashkent Open Agzamov 2022"]
[Site "Tashkent"]
[Date "2022.05.05"]
[Round "2.9"]
[White "Madaminov, Mukhiddin"]
[Black "Vokhidov, Shamsiddin"]
[Result "1/2-1/2"]
[ECO "B56"]
[WhiteElo "2308"]
[BlackElo "2536"]
[Annotator "TA"]
[PlyCount "120"]
[EventDate "2022.05.05"]
[EventType "swiss"]
[EventCountry "UZB"]
[SourceTitle "playchess.com"]
[Source "ChessBase"]
[SourceQuality "1"]
[TimeControl "5400+30"]

{[%evp 15,120,29,19,16,0,-31,15,0,0,-2,15,3,6,18,14,-32,-22,-79,-86,-124,-89,-90,-67,-79,-71,-69,-70,-63,-40,-61,-26,-66,-74,-60,-41,-87,-60,-62,-51,-49,-62,-46,0,-15,-14,-10,-10,-10,-18,-23,-16,-18,-31,-26,-11,-22,-13,-31,-30,-45,-18,-107,-23,-132,-131,-163,-146,-157,-145,-144,-136,-145,-158,-176,-190,-212,-211,-258,-214,-214,-209,-212,-199,-195,-191,-225,-41,-45,-57,-282,0,0,0,0,13,0,0,0,0,0,0,0,0,0,1,0,11]} 1. e4 {[%emt 0:01:02]} c5 {[%emt 0:00:06]} 2. Nf3 {[%emt 0:00:28]} Nc6 {[%emt 0:00:07]} 3. Nc3 {[%emt 0:00:05]} d6 {[%emt 0:00:10]} 4. d4 {[%emt 1:30:55]} cxd4 {[%emt 0:00:04]} 5. Nxd4 {[%emt 0:00:00]} Nf6 {[%emt 0:00:04]} 6. f3 {[%emt 0:00:00]} e5 {[%emt 0:00:18]} 7. Nb3 {[%emt 0:00:00]} Be7 {[%emt 0:00:06]} 8. Be3 {[%emt 0:00:00]} O-O {[%emt 0:00:51] 8...Be6 is more advanced technology.} 9. Be2 {[%emt 0:00:00] B56: Classical Sicilian: Unusual Lines.} a5 {[%emt 0:11:11]} 10. Bb5 {[%emt 0:00:00]} Be6 {[%emt 0:07:27]} (10... d5 $15 11. Nxd5 (11. exd5 Nb4 $11) 11... Nxd5 12. Qxd5 (12. exd5 Nb4 $15) 12... a4 13. Qxd8 (13. Bxc6 axb3 14. Qxd8 Rxd8 $11) 13... Rxd8 14. Bxc6 axb3) 11. O-O {[%emt 0:00:00]} Na7 {[%emt 0:02:50]} 12. Be2 {[%emt 0:00:00]} Nc8 {[%emt 0:04:18]} 13. Qd3 {[%emt 0:00:00]} a4 {[%emt 0:06:16]} 14. Nd2 {[%emt 0:00:00]} Nb6 {[%emt 0:00:35] [#] Against Nc4} 15. Bf2 $146 {[%emt 0:00:00]} (15. Kh1 $11 {might be stronger.}) ({Predecessor:} 15. Qb5 Nfd7 16. b4 Rc8 17. Nxa4 Nxa4 18. Qxa4 Bg5 19. Bxg5 Qxg5 20. f4 exf4 21. Nf3 {0-1 (53) Reshef,O (2402)-Jojua,D (2579) Jerusalem 2015}) 15... d5 $15 {[%emt 0:07:49]} 16. exd5 {[%emt 0:00:00]} (16. Rfd1 $11) 16... Nbxd5 $17 {[%emt 0:03:37]} 17. Nxd5 {[%emt 0:00:00]} Nxd5 {[%emt 0:00:27]} 18. Qe4 {[%emt 0:00:00]} Nf4 {[%emt 0:09:25]} 19. Bd3 {[%emt 0:00:00]} Nxd3 {[%emt 0:10:23]} 20. cxd3 {[%emt 0:00:00]} Bd5 {[%emt 0:01:49]} 21. Qe2 {[%emt 0:00:00]} Ra6 {[%emt 0:00:28]} 22. Ne4 {[%emt 0:00:00]} ({Much weaker is} 22. Qxe5 Bf6 23. Qf5 a3 $19) 22... a3 {[%emt 0:03:10]} 23. bxa3 {[%emt 0:00:00]} Rxa3 {[%emt 0:00:29]} 24. d4 {[%emt 0:00:00]} exd4 {[%emt 0:09:30]} 25. Rfd1 {[%emt 0:00:00]} (25. Bxd4 $15 {deserves consideration.} Ra4 26. Bf2) 25... f5 {[%emt 0:05:43]} 26. Ng3 {[%emt 0:00:00]} d3 {[%emt 0:05:00]} 27. Rxd3 {[%emt 0:00:00]} Rxd3 {[%emt 0:00:38]} 28. Qxd3 {[%emt 0:00:00]} Bf6 {[%emt 0:00:22] This bishop pair is nice.} 29. Rd1 {[%emt 0:02:55] Qb5 is the strong threat.} Be6 {[%emt 0:00:53]} 30. Qe2 {[%emt 0:01:13]} Qc8 {[%emt 0:00:10]} 31. Nh5 {[%emt 0:00:33]} Bg5 {[%emt 0:00:46]} 32. h4 {[%emt 0:07:42]} Bh6 {[%emt 0:00:19]} 33. Qb2 {[%emt 0:01:34]} Bf7 {[%emt 0:02:27]} 34. Ng3 {[%emt 0:00:08]} Re8 {[%emt 0:01:05][%cal Bf8e8,Be8e7,Be7c7,Bc7c6][%mdl 32]} 35. Rb1 {[%emt 0:00:45]} Re7 {[%emt 0:00:22]} 36. Qb4 {[%emt 0:00:33]} Rc7 {[%emt 0:01:16]} (36... Bxa2 $2 37. Ra1 Rd7 38. Rxa2 $18) 37. Qd6 {[%emt 0:00:24][%cal Og3f5]} Bxa2 {[%emt 0:01:44]} 38. Rb5 {[%emt 0:00:40]} (38. Re1 $11 Rc6 39. Qe5) 38... Be6 {[%emt 0:00:43]} (38... Rd7 $1 $17 {[%cal Rd7d6]} 39. Qa3 Be6) 39. Re5 {[%emt 0:00:31]} (39. Bd4 $11) 39... Rc6 {[%emt 0:00:48]} 40. Qd4 {[%emt 0:00:28]} Rc1+ {[%emt 0:00:43]} 41. Kh2 {[%emt 0:00:22][%cal Og3f5]} Rc4 {[%emt 0:00:10]} 42. Qd6 {[%emt 0:00:12]} Rc6 {[%emt 0:00:43]} ({Much less strong is} 42... Rxh4+ 43. Kg1 Rc4 44. Qxe6+ (44. Rxe6 Rc6 $14) 44... Qxe6 45. Rxe6 $18) 43. Qb4 {[%emt 0:00:50]} g6 {[%emt 0:01:34]} 44. Ne2 {[%emt 0:00:37]} Bf8 {[%emt 0:01:22]} 45. Qe1 {[%emt 0:00:31]} Bd6 {[%emt 0:00:25]} 46. Nd4 {[%emt 0:00:27]} Rc5 {[%emt 0:01:32]} 47. Bg3 {[%emt 0:00:03]} Bxe5 {[%emt 0:00:05]} 48. Bxe5 {[%emt 0:00:02]} Bf7 {[%emt 0:00:37]} 49. f4 {[%emt 0:00:52]} Qd8 {[%emt 0:00:39]} 50. Nf3 {[%emt 0:00:06] [#]} Rc2 $2 {[%emt 0:01:15]} (50... Qe7 $1 $19 {White must now prevent ...Bd5.} 51. Qd2 Bd5) 51. Qb1 $1 $15 {[%emt 0:00:46][%csl LRb7,LRc2]} Qc8 {[%emt 0:00:42]} 52. Nd4 {[%emt 0:00:16] [#] Against Qc6} (52. Qb6 $15 Rc6 53. Qb4) 52... Rc5 $2 {[%emt 0:00:41]} ({Black should play} 52... Ra2 $1 $19 {Hoping for ...Bd5.} 53. Qb6 Bd5) 53. Qb6 $11 {[%emt 0:00:12] The position is equal.} Rc6 {[%emt 0:02:04]} 54. Nxc6 {[%emt 0:00:07]} bxc6 {[%emt 0:00:03][%mdl 4096] Endgame KQB-KQB} 55. Ba1 {[%emt 0:00:49] White threatens Qd4 and mate.} Kf8 {[%emt 0:00:30]} 56. Qc5+ {[%emt 0:00:09]} Ke8 $1 {[%emt 0:00:09]} 57. Qe5+ {[%emt 0:00:46]} Qe6 {[%emt 0:00:01]} 58. Qb8+ {[%emt 0:00:11]} Ke7 {[%emt 0:00:02]} 59. Qc7+ {[%emt 0:00:15]} Kf8 {[%emt 0:00:38]} 60. Be5 {[%emt 0:00:33]} h5 {[%emt 0:00:56] Whites escaped into a draw.  Weighted Error Value: White=0.28 (precise) /Black=0.22 (precise)} 1/2-1/2

[Event "15th Tashkent Open Agzamov 2022"]
[Site "Tashkent"]
[Date "2022.05.05"]
[Round "2.10"]
[White "Rakhimzhan, Alen"]
[Black "Khusnutdinov, Rustam"]
[Result "1-0"]
[ECO "E74"]
[WhiteElo "2248"]
[BlackElo "2472"]
[Annotator "TA RC"]
[PlyCount "59"]
[EventDate "2022.05.05"]
[EventType "swiss"]
[EventCountry "UZB"]
[SourceTitle "playchess.com"]
[Source "ChessBase"]
[SourceQuality "1"]
[TimeControl "5400+30"]

{[%evp 19,59,47,45,51,41,17,12,7,19,0,18,0,106,100,110,107,227,171,638,646,670,669,664,641,790,768,713,598,572,594,581,426,690,679,2289,2325,29985,29986,29985,29984,29984,29976]} 1. d4 Nf6 2. c4 g6 3. Nc3 Bg7 4. e4 d6 5. Be2 O-O 6. Bg5 c5 7. d5 h6 8. Be3 e6 9. Qd2 exd5 10. exd5 Kh7 11. h4 $1 {[%cal Bh2h4,Bh4h5][%mdl 4] is recently more successful than 11.h3. E74: King's Indian: Averbakh Variation: 6...c5.} Re8 12. h5 g5 13. Nf3 {[%cal Of3g5] Strongly threatening Nxg5+! The position is equal.} Ng4 $1 {[#]} 14. Nxg5+ $1 hxg5 15. Bxg5 Bf6 (15... Bxc3 $11 16. bxc3 f6) 16. Bxf6 $16 {Dancing on a razor blade.} Qxf6 17. O-O-O {[#] Rde1 is the strong threat.} Qxf2 $146 (17... Nxf2 $16 {might work better.} 18. Rdf1 Rxe2 19. Nxe2 Nd7) ({Predecessor:} 17... Qh6 18. Bxg4 Bxg4 19. f3 Bd7 20. g4 Qxd2+ 21. Kxd2 f5 22. gxf5 Bxf5 23. Nb5 Rd8 {1-0 (48) Vantika,A (2381)-Bogdanov,E (2427) Budapest 2022}) 18. Rde1 Ne5 (18... Bd7) 19. Ne4 $1 $18 {[%csl LRd6,LRf2]} Nxc4 20. Bxc4 Qxd2+ 21. Kxd2 {And now Ng5+ would win.} Rd8 22. Ng5+ Kg7 23. Ref1 f5 24. g4 {[%cal Bg2g4,Bg4g5][%mdl 32]} Rf8 25. Bd3 Kh6 {[#]} (25... Kh8 $142 26. Ne4 c4) 26. Ne4 $1 {[%mdl 512]} Re8 (26... Nd7 27. g5+) 27. g5+ Kg7 28. h6+ {White mates.} Kg6 {[#]} 29. h7 $1 Rh8 30. Rh6+ {Weighted Error Value: White=0.23 (precise) /Black=0.84} 1-0